Cogmind - Beta 13 @@@ ROGUE MODE // 2024.07.14 @ 22:35:16 Player: maykstuff Result: Destroyed by Y-45 Defender with Beam Rifle Performance ------------- Evolutions (2) 1000 Regions Visited (5) 1000 Robots Destroyed (51) 255 Value Destroyed (1336) 1336 Prototype IDs (28) 560 Alien Tech Used (0) 0 Bonus (347) 347 TOTAL SCORE: 4498 Bonus ------- High Alert Combat Kills 8 Follower Combat Kills 60 Aligned with FarCom 300 Friendly Fire -21 Cogmind --------- Core Integrity 0/550 Matter 163/300 Energy 97/100 System Corruption 0% Temperature Critical (606) Movement Core (350) Ox6 Location -8/Materials Parts ------- > --- POWER (1) -------- (None) > --- PROPULSION (3) --- (None) > --- UTILITY (3) ------ Large Storage Unit > --- WEAPON (4) ------- (None) > --- INVENTORY (15) --- Ion Engine Light Ion Engine Aluminum Leg Wheel Compact Wheel Airjet Advanced Heat Sink Datajack Mining Laser Peak State ------------ > --- POWER ------------ Light Nuclear Core > --- PROPULSION ------- Aluminum Leg Aluminum Leg Carbon-fiber Leg > --- UTILITY ---------- Small Storage Unit Large Storage Unit Experimental Sensor Array > --- WEAPON ----------- Beam Rifle Heavy Particle Gun Minigun Longsword +1 > --- INVENTORY -------- Ion Engine Light Ion Engine Aluminum Leg Wheel Compact Wheel Airjet Advanced Heat Sink Datajack Mining Laser [Rating: 37] Favorites ----------- Power Ion Engine Engine Ion Engine Power Core Light Nuclear Core Propulsion Compact Wheel Treads Light Treads Leg Aluminum Leg Wheel Compact Wheel Utility Small Storage Unit Device Heat Sink Storage Small Storage Unit Weapon Assault Rifle Energy Gun Medium Laser Ballistic Gun Assault Rifle Launcher Grenade Launcher Slashing Weapon Longsword +1 Build | -11 -10 -10 -10 -9 -8 ------- Run | Yrd Mat Min Exi Min Mat Slots Evolved 4 | . . . . . 4 Power . | . . . . . . Propulsion 1 | . . . . . 1 Utility 1 | . . . . . 1 Weapon 2 | . . . . . 2 Parts Attached 44 | 10 11 1 2 6 14 Power 7 | 2 2 1 . 1 1 Engine 5 | 2 2 . . 1 . Core 2 | . . 1 . . 1 Reactor . | . . . . . . Propulsion 16 | 4 2 . 1 4 5 Treads 1 | 1 . . . . . Leg 3 | . . . . . 3 Wheel 12 | 3 2 . 1 4 2 Hover . | . . . . . . Flight . | . . . . . . Utility 7 | 1 2 . 1 . 3 Device 5 | . 2 . . . 3 Storage 2 | 1 . . 1 . . Processor . | . . . . . . Hackware . | . . . . . . Protection . | . . . . . . Artifact . | . . . . . . Weapon 14 | 3 5 . . 1 5 Energy Gun 5 | 2 . . . . 3 Energy Cannon . | . . . . . . Ballistic Gun 4 | 1 2 . . . 1 Ballistic Cannon . | . . . . . . Launcher 4 | . 3 . . 1 . Special Weapon . | . . . . . . Impact Weapon . | . . . . . . Slashing Weapon 1 | . . . . . 1 Piercing Weapon . | . . . . . . Special Melee Weapon . | . . . . . . Unidentified Prototypes 2 | . . . . . 2 Parts Lost 25 | . 4 3 . 1 17 Power 4 | . 1 1 . . 2 Propulsion 7 | . . 1 . . 6 Utility 4 | . 1 1 . . 2 Weapon 10 | . 2 . . 1 7 Highest Loss Streak 10 | . 2 2 . 1 10 To Critical Strikes . | . . . . . . Average Slot Usage (%) 84 | . 95 89 59 87 81 Engine 6 | . 14 3 . 7 2 Core 2 | . . 8 . . 5 Leg 2 | . . . . . 17 Wheel 21 | . 26 26 15 28 6 Device 5 | . 11 7 . . 8 Storage 18 | . 14 14 15 28 17 Energy Gun 3 | . 9 . . . 8 Ballistic Gun 11 | . 8 14 14 14 5 Launcher 9 | . 9 14 14 8 1 Slashing Weapon 1 | . . . . . 8 Naked Turns . | . . . . . . Heaviest Build 43 | 14 16 16 30 34 43 Greatest Support 44 | 26 32 32 32 32 44 Greatest Overweight (x) 9 | 2 . . . 1 9 Average Overweight (x) . | . . . . . . Largest Inventory Capacity 15 | 8 8 8 15 15 15 Average Capacity 10 | 7 8 8 8 15 15 Most Carried 12 | 6 8 8 8 12 10 Average Carried 7 | 3 6 7 7 9 8 Final Capacity 15 | 8 8 8 15 15 15 Final Carried 11 | 6 6 8 7 11 9 Class Distribution -------------------- 84% | Mutant 14% | Assassin Dominant Class ---------------- Mutant | -10/Materials Mutant | -10/Mines Mutant | -10/Exiles Mutant | -9/Mines Assassin | -8/Materials Resources | -11 -10 -10 -10 -9 -8 ----------- Run | Yrd Mat Min Exi Min Mat Matter Collected 1064 | 196 269 77 . 310 212 Remotely . | . . . . . . Salvage Created 1266 | . 513 132 . 86 535 Parts 104 | . 34 26 . 10 34 Haulers Intercepted 2 | . 2 . . . . Recyclers Shooed 1 | . . 1 . . . Parts Field Recycled . | . . . . . . Retrieved Matter . | . . . . . . Parts Self-Destructed . | . . . . . . Prevented . | . . . . . . Kills | -11 -10 -10 -10 -9 -8 ------- Run | Yrd Mat Min Exi Min Mat Combat Hostiles Destroyed 38 | . 13 11 . 1 13 Melee 4 | . . . . . 4 Guns 13 | . 4 2 . . 7 AOE 21 | . 9 9 . 1 2 Classes Destroyed 10 | . 8 . . 1 1 Worker 2 | . 1 1 . . . Builder 1 | . . . . 1 . Tunneler 2 | . 1 1 . . . Hauler 2 | . 2 . . . . Recycler 2 | . 1 . . 1 . Mechanic 2 | . 1 . . . 1 Operator 2 | . 2 . . . . Swarmer 16 | . 3 9 . . 4 Grunt 19 | . 10 2 . 1 6 Sentry 3 | . . . . . 3 Best Kill Streak 8 | . 8 4 . 2 7 Combat Bots Only 7 | . 5 3 . 1 7 Max Kills in Single Turn 3 | . 3 3 . 2 2 Gunslinging 1 | . . . . . 1 Exploded 2 | . 2 2 . 1 1 Melee 1 | . . . . . 1 Uniques/NPCs Destroyed . | . . . . . . Combat | -11 -10 -10 -10 -9 -8 -------- Run | Yrd Mat Min Exi Min Mat Hostile Shots Fired 192 | . 40 19 . 5 128 Missed 41 | . 12 5 . 2 22 Damage Taken 2548 | . 493 158 . 116 1781 Core 737 | . 117 38 . 29 553 Absorbed by Shields . | . . . . . . Core Remaining (%) 63 | 100 . . . 26 . Volleys Fired 75 | . 33 8 9 4 21 Largest 3 | . 2 2 2 2 3 Hottest 136 | . 80 50 50 50 136 Shots Fired 143 | . 57 16 15 8 47 Gun 106 | . 43 8 9 4 42 Cannon . | . . . . . . Launcher 37 | . 14 8 6 4 5 Special . | . . . . . . Kinetic 49 | . 11 8 9 4 17 Thermal 55 | . 32 . . . 23 Explosive 37 | . 14 8 6 4 5 Electromagnetic 2 | . . . . . 2 Robot Hit Streak 8 | . 8 2 . 3 7 Robot Miss Streak 4 | . 4 1 . 2 3 Penetration Max . | . . . . . . Secondary Targets 3 | . 1 . . . 2 Max Gunslinging Chain 1 | . 1 . . . 1 Shots Hit Robots 85 | . 36 4 . 5 40 Core Hits 83 | . 34 21 . 7 21 Critical Kills . | . . . . . . Critical Parts Destroyed . | . . . . . . Critical Strikes 4 | . 1 . . . 3 Burn 2 | . 1 . . . 1 Sever 2 | . . . . . 2 Melee Attacks 12 | . . . . . 12 Impact . | . . . . . . Slashing 12 | . . . . . 12 Piercing . | . . . . . . Sneak Attacks . | . . . . . . Combat Hostiles . | . . . . . . Follow-up Attacks . | . . . . . . Damage Inflicted 3034 | . 1115 542 . 263 1114 Guns 873 | . 367 21 . 22 463 Cannons . | . . . . . . Explosions 1598 | . 748 521 . 231 98 Melee 553 | . . . . . 553 Ramming 10 | . . . . 10 . Kinetic 339 | . 117 21 . 22 179 Thermal 509 | . 252 . . . 257 Explosive 1596 | . 746 521 . 231 98 Electromagnetic 27 | . . . . . 27 Impact . | . . . . . . Slashing 553 | . . . . . 553 Piercing . | . . . . . . Highest Corruption 1 | . 1 1 1 1 . Average Corruption 1 | . 1 1 1 1 . Corruption Purged . | . . . . . . Corruption Blocked . | . . . . . . Effects 12 | . 4 4 3 1 . Message Errors 4 | . 1 1 2 . . Matter Fused 2 | . 1 1 . . . Heat Flow Errors 3 | . . 1 1 1 . Parts Rejected 1 | . 1 . . . . Data Loss (minor) 1 | . . 1 . . . Data Loss (major) 1 | . 1 . . . . Overload Shots . | . . . . . . Overflow Damage 63 | . 29 7 . 11 16 Projectiles . | . . . . . . Explosions 47 | . 29 7 . 11 . Melee 16 | . . . . . 16 Knockbacks . | . . . . . . Impact . | . . . . . . Kinetic . | . . . . . . Secondary . | . . . . . . Self-Inflicted Damage 325 | . 175 37 . 74 39 Shots 11 | . 6 2 . 2 1 Rammed 1 | . . . . 1 . Targets Rammed 1 | . . . . 1 . Kicked . | . . . . . . Crushed . | . . . . . . Highest Temperature 746 | . 24 260 279 180 746 Average Temperature 208 | . 7 140 169 84 339 Received Heat Transfer 930 | . 126 6 . 42 756 Effects 16 | . . . . . 16 Shutdowns 1 | . . . . . 1 Interference 1 | . . . . . 1 Matter Decay 4 | . . . . . 4 Short Circuit 1 | . . . . . 1 Damage (major) 6 | . . . . . 6 Damage (core) 3 | . . . . . 3 Siege Activations . | . . . . . . Robots Corrupted . | . . . . . . Combat Hostiles . | . . . . . . Parts Fried . | . . . . . . Impact Corruptions . | . . . . . . Robots Melted . | . . . . . . Combat Hostiles . | . . . . . . Parts Melted 4 | . 3 . . . 1 Heat Transferred 1493 | . 864 . . . 629 Parts Sabotaged . | . . . . . . Parts Stolen . | . . . . . . Parts Stripped . | . . . . . . Power Chain Reactions . | . . . . . . Alert | -11 -10 -10 -10 -9 -8 ------- Run | Yrd Mat Min Exi Min Mat Peak Influence 439 | . 439 288 . 102 230 Initial 25 | . . 25 . . . Average 90 | . 105 118 . 27 144 Maximum Alert Level 2 | . 2 1 . . 1 Low Security (%) 93 | 100 89 86 . 100 98 Level 1 5 | . 9 13 . . 1 Level 2 . | . 1 . . . . Level 3 . | . . . . . . Level 4 . | . . . . . . Level 5 . | . . . . . . High Security . | . . . . . . Max Security . | . . . . . . Squads Dispatched 5 | . 2 . . . 3 Investigation 2 | . 2 . . . . Extermination . | . . . . . . Reinforcement 1 | . . . . . 1 Assault 1 | . . . . . 1 Garrison 1 | . . . . . 1 Intercept . | . . . . . . Searches Triggered . | . . . . . . Construction Impeded . | . . . . . . Haulers Reinforced . | . . . . . . Active Scanning Responses . | . . . . . . Cargo Convoy Interrupts . | . . . . . . Stealth | -11 -10 -10 -10 -9 -8 --------- Run | Yrd Mat Min Exi Min Mat Distress Signals . | . . . . . . Communications Jammed . | . . . . . . Distress Signals . | . . . . . . Times Spotted 52 | . 21 10 . 3 18 Peak Tracking Total 9 | . 4 3 . 3 9 Tactical Retreats . | . . . . . . Traps | -11 -10 -10 -10 -9 -8 ------- Run | Yrd Mat Min Exi Min Mat Traps Triggered 3 | . 3 . . . . Indirectly . | . . . . . . Trap Hack Attempts . | . . . . . . Triggered . | . . . . . . Disarmed 6 | . 6 . . . . Reprogrammed . | . . . . . . Reused . | . . . . . . Traps Extracted . | . . . . . . Installed . | . . . . . . Triggered . | . . . . . . Machines | -11 -10 -10 -10 -9 -8 ---------- Run | Yrd Mat Min Exi Min Mat Machines Disabled 10 | . 3 3 1 . 3 Max in Single Turn 1 | . 1 1 1 . 1 Garrison Access 1 | . . . . . 1 Machines Repaired . | . . . . . . Machines Dismantled . | . . . . . . Machines Sabotaged . | . . . . . . Overloaded Fab Kills . | . . . . . . Hacking | -11 -10 -10 -10 -9 -8 --------- Run | Yrd Mat Min Exi Min Mat Machines Accessed 11 | . 5 . 5 . 1 Terminals 5 | . 5 . . . . Fabricators . | . . . . . . Repair Stations . | . . . . . . Recycling Units . | . . . . . . Scanalyzers . | . . . . . . Garrison Access 1 | . . . . . 1 Total Hacks 77 | . 25 . 50 . 2 Successful 68 | . 16 . 50 . 2 Failed 9 | . 9 . . . . Catastrophic 2 | . 2 . . . . Database Lockouts . | . . . . . . Manual 12 | . 7 . 5 . . Terminals 25 | . 25 . . . . Fabricators . | . . . . . . Repair Stations . | . . . . . . Recycling Units . | . . . . . . Scanalyzers . | . . . . . . Garrison Access 2 | . . . . . 2 Terminal Hacks 66 | . 16 . 50 . . Record 50 | . 1 . 49 . . Robot Analysis 1 | . 1 . . . . Prototype ID Bank 2 | . 2 . . . . Branch Access Points 1 | . 1 . . . . Alert Level 3 | . 3 . . . . Unreport Threat 2 | . 2 . . . . Locate Traps 2 | . 2 . . . . Disarm Traps 1 | . 1 . . . . Registered Components 1 | . 1 . . . . Zone Layout 2 | . 2 . . . . Derelict Proto ID Bank 1 | . . . 1 . . Fabricator Hacks . | . . . . . . Repair Station Hacks . | . . . . . . Recycling Unit Hacks . | . . . . . . Scanalyzer . | . . . . . . Garrison Access Hacks 2 | . . . . . 2 Unlock Access 1 | . . . . . 1 Coupler Status 1 | . . . . . 1 Unauthorized Hacks . | . . . . . . Terminals . | . . . . . . Fabricators . | . . . . . . Repair Stations . | . . . . . . Recycling Units . | . . . . . . Scanalyzers . | . . . . . . Garrison Access . | . . . . . . Data Cores Recovered 2 | . 2 . . . . Used 2 | . 2 . . . . Hacking Detections 2 | . 2 . . . . Full Trace Events 1 | . 1 . . . . Feedback Events . | . . . . . . Feedback Blocked . | . . . . . . Robot Schematics Acquired . | . . . . . . Robots Built . | . . . . . . Authchips . | . . . . . . Time . | . . . . . . Total Robot Build Rating . | . . . . . . Part Schematics Acquired . | . . . . . . Parts Built . | . . . . . . Authchips . | . . . . . . Time . | . . . . . . Total Part Build Rating . | . . . . . . Parts Repaired . | . . . . . . Time . | . . . . . . Parts Recycled . | . . . . . . Recycled Matter . | . . . . . . Retrieved Matter . | . . . . . . Retrieved Components . | . . . . . . Parts Scanalyzed . | . . . . . . Part Schematics Acquired . | . . . . . . Parts Damaged . | . . . . . . Bothacking | -11 -10 -10 -10 -9 -8 ------------ Run | Yrd Mat Min Exi Min Mat Used RIF Installer . | . . . . . . Robots Hacked . | . . . . . . Non-combat . | . . . . . . Combat . | . . . . . . Robot Hacks Applied . | . . . . . . Relay Couplers Released 2 | . . . . . 2 Machine Destruction 2 | . . . . . 2 Fabnet Peak Effective % . | . . . . . . Robots Rewired . | . . . . . . Allies Hacked . | . . . . . . Hacks Repelled . | . . . . . . Allies | -11 -10 -10 -10 -9 -8 -------- Run | Yrd Mat Min Exi Min Mat Total Allies 1 | . . . . 1 . Largest Group 1 | . . . . 1 . Highest-Rated Group 31 | . . . . 31 . Highest-Rated Ally 31 | . . . . 31 . Total Orders . | . . . . . . Ally Attacks 4 | . . . . 4 . Total Damage 65 | . . . . 65 . Kills 2 | . . . . 2 . Allies Corrupted . | . . . . . . Allies Melted . | . . . . . . Intel | -11 -10 -10 -10 -9 -8 ------- Run | Yrd Mat Min Exi Min Mat Robot Analysis Total 1 | . 1 . . . . Derelict Logs Recovered 3 | . . 1 . 2 . Drone Launches . | . . . . . . Drone Recoveries . | . . . . . . Exploration | -11 -10 -10 -10 -9 -8 ------------- Run | Yrd Mat Min Exi Min Mat Turns Passed 2890 | 69 643 581 399 726 472 Spaces Moved 2370 | 55 531 555 370 632 227 Core 14 | 9 . . . . 5 Treads 1 | 1 . . . . . Legs 139 | . . . . . 139 Wheels 2216 | 45 531 555 370 632 83 Hover . | . . . . . . Flight . | . . . . . . Fastest Speed 50 | 50 90 100 100 100 96 Average Speed 106 | 91 99 100 100 104 160 Slowest Speed 500 | 160 100 100 100 110 500 Overloaded Moves . | . . . . . . Propulsion Burnouts . | . . . . . . Robots Hopped . | . . . . . . Cave-ins Triggered . | . . . . . . Exploration Rate (%) 60 | 4 85 88 67 98 21 Regions Visited 5 Branch Regions 3 Pre-discovered Areas 2 | . . 1 1 . . Known Exits Taken 2 | . 1 . 1 . . Unknown Exits Taken 3 | 1 . 1 . 1 . Scrap Searched 2 | . . . . 2 . Spaces Dug . | . . . . . . Terrain Destroyed 287 | . 121 66 27 36 37 Melee . | . . . . . . Projectile . | . . . . . . AOE 287 | . 121 66 27 36 37 Terrain Rammed . | . . . . . . Walls Destroyed . | . . . . . . Machines Disabled . | . . . . . . Actions | -11 -10 -10 -10 -9 -8 --------- Run | Yrd Mat Min Exi Min Mat Total 2573 | 68 588 564 384 687 282 Wait 51 | . 5 . . 43 3 Move 2365 | 54 530 554 369 631 227 Hop . | . . . . . . Pick Up 17 | 4 5 1 1 2 4 Fast Attach 17 | 6 4 . 1 1 5 Attach 12 | . 3 . 1 1 7 Detach 1 | . . . . . 1 Swap 15 | 4 4 1 . 4 2 Drop 5 | . 4 . 1 . . Fire 75 | . 33 8 9 4 21 Melee 12 | . . . . . 12 Ram 1 | . . . . 1 . Kick . | . . . . . . Crush . | . . . . . . Escape Stasis . | . . . . . . Rewire 2 | . . . 2 . . Trap . | . . . . . . Miscellaneous . | . . . . . . Route ------- -11/Scrapyard -10/Materials (discovered 5 exits: [*Mat x3] / *Min x2) -10/Mines (discovered 2 exits: [*Mat] / *Exi) -10/Exiles (discovered 2 exits: *Min x2) -9/Mines (discovered 2 exits: *Mat x2) -8/Materials (discovered 1 exit: Fac) History --------- Turn | Location | Event 15 | -11/Scrapyard | Discovered new exit (range 16) 70 | -11/Scrapyard | Entered Materials 182 | -10/Materials | Discovered new exit (range 9) 239 | -10/Materials | Discovered new exit (range 14) 312 | -10/Materials | Build established: Mutant 315 | -10/Materials | Identified exit to Mines 364 | -10/Materials | Discovered new exit (range 15) 561 | -10/Materials | Discovered new exit (range 11) 713 | -10/Materials | Entered Mines 714 | -10/Mines | Learned location of Storage (-7) 858 | -10/Mines | Found a damaged Exp. Sensor Array with a note attached 860 | -10/Mines | Found Prototype Device 1039 | -10/Mines | Core integrity fell below 50% 1105 | -10/Mines | Found a hidden stash of uninstalled traps 1116 | -10/Mines | Discovered new exit (range 4) 1287 | -10/Mines | Deemed a non-threat by the Exiles lab entrance 1288 | -10/Mines | Discovered new exit (range 5) 1294 | -10/Mines | Entered Exiles 1295 | -10/Exiles | Identified exit to Mines 1382 | -10/Exiles | Met 8R-AWN 1404 | -10/Exiles | Met EX-HEX 1453 | -10/Exiles | Met EX-BIN 1473 | -10/Exiles | Aligned with FarCom system 1474 | -10/Exiles | Given EX-Vault access code 1517 | -10/Exiles | Opened EX-Vault 1527 | -10/Exiles | Found Longsword +1 1558 | -10/Exiles | Warned to stay clear of 0b10 Research branches 1584 | -10/Exiles | Met EX-DEC 1610 | -10/Exiles | Learned location of Zion (-6) 1693 | -10/Exiles | Left Exiles lab with Longsword +1 1693 | -10/Exiles | Entered Mines 1765 | -9/Mines | Received a Mining Laser from a helpful Derelict 1766 | -9/Mines | Assembled infested the area 1771 | -9/Mines | Assisted by a Guerilla fighting off Assembled 1843 | -9/Mines | Discovered new exit (range 15) 1929 | -9/Mines | Discovered new exit (range 15) 2175 | -9/Mines | Learned location of 1 exit from Lower Caves 2295 | -9/Mines | Received a Rocket Launcher from a helpful Derelict 2295 | -9/Mines | Learned location of 1 exit from Materials 2419 | -9/Mines | Entered Materials 2419 | -8/Materials | Evolved 4 slots: Propulsion x1, Utility x1, Weapon x2 2420 | -8/Materials | Identified exit to Factory 2420 | -8/Materials | Identified Exp. Sensor Array 2575 | -8/Materials | Lost 7 parts (1p3n3w) 2680 | -8/Materials | Identified exit to Garrison 2751 | -8/Materials | Build established: Assassin 2863 | -8/Materials | Garrison activated, responded to threat 2877 | -8/Materials | Core integrity fell below 50% 2887 | -8/Materials | Core integrity fell below 20% 2891 | -8/Materials | Destroyed by Y-45 Defender with Beam Rifle Last Messages --------------- 02880_ Aluminum Leg destroyed. 02881_ Overheating: Matter decay (-25). 02881_ R-06 Scavenger collects Lgt. Assault Rifle. 02882_ Broken Exp. Sensor Array destroyed. 02882_ ALERT: Garrison Access compromised, dispatching assault squad. 02882_ Garrison Access disabled. 02882_ Relay Coupler [Cutter] tumbles out of Garrison Access. 02882_ Relay Coupler [NC] tumbles out of Garrison Access. 02883_ Overheating: System interference. 02883_ Hvy. Particle Gun temporarily disabled. 02884_ R-06 Scavenger collects Lgt. Nuclear Core. 02887_ Overheating: Core damaged (-104). 02888_ Sml. Storage Unit destroyed. 02888_ Hvy. Particle Gun destroyed. 02891_ Critical hit (Burn: +37). Map ----- +----------------------------------------------------+ | | | | | | | | | | | | | | | | | | | | | | | | | | | | | | | ??######################??????????????????????? | | ??# =! # #?#######??????????????? | | ??# ! # """"" !##! #??????????????? | | ??# + """"""""" ## """ #??????????????? | | ??# # """ """ ## """ #??????????????? | | ??# # ##! """ #??????????????? | | ??####+#+########+####### """ #??????????????? | | ?????# + #??????????????? | | ?????# ##### ########??????????????? | | ?????########### #####;######????????????????? | | ???????????????# ##= @ #????????????????? | | ???????#??????## ##[!! """ #????????????????? | | ???????# ##### #*==g """ #????????????????? | | ???????# #%=*Y """ #????????????????? | | ???????# T /g "" #????????????????? | | ???????# ##### =#% G #????????????????? | | ???????#??????## ## !""r * #????????????????? | | ???????????????# ## #????????????????? | | ?????????????? + ####/#######????????????????? | | ????????????? # r###############????????? | | ???????????? #^ # #????????? | | ??????????? ?#^ """ #! % #????????? | | ??????????+ ?# """ # #????????? | | ??????????# ??# """ + #????????? | | ??????????#????# # #????????? | | ???????????????+ # #????????? | | ???????????????######+################????????? | | ????????????????# #???????????????????? | | ????????????????# #?????#?????????????? | | ???????????????## """ """ ###### ???????????? | | ???????????????# """ """ + #??????????? | | ???????????????## """ "" # ???????????? | | ????????????????# !%** # +??????????? | | ????????????????# =% % # #??????????? | | ????????????????# = = % # #??????????? | +----------------------------------------------------+ Best States ------------- Heat Dissipation 35 Energy Generation 14 Energy Capacity 250 Matter Stores 300 Matter Capacity 300 Sight Range 16 Robot Scan Range 20 Terrain Scan Density 10 Evasion (%) 45 Recoil Reduction 1 Item Schematics ----------------- None Robot Schematics ------------------ None Fabricated ------------ Nothing Alien Tech Used ----------------- None Achievements -------------- None Challenges ------------ None Game ------ Seed CouplerFissionRefractor Manual? 0 Play Time 00:31:03 Cumulative 14.4 hours Start 2024.07.14 @ 22:01:51 End 2024.07.14 @ 22:35:16 Sessions 1 Manual Loads 0 Difficulty Rogue Special Mode None Game No. 30 Rogue 30 Adventurer 0 Explorer 0 Win Type - Total 0 Types 0/0/0/0/0/0/0/0/0 Lore% 13 Gallery% 16 Achievement% 16 Wizard Run 0 Options --------- Layout 1 ASCII 1 Keyboard 0 Movement Numpad Keybinds 0 Fullscreen 1 Font 24/Proggy Map View 50x35 Zoom Use 0% Tactical HUD 1 Map Filters NONE Filters NONE Steam 0 RUN: fb0fbaad-6997-48c6-ba1b-fdbe1c9fddce